Cogmind - Beta 15 @@@ ROGUE MODE // 2025.05.25 @ 17:33:07 Player: acra Result: Self-destructed Performance ------------- Evolutions (4) 2000 Regions Visited (7) 1400 Robots Destroyed (78) 390 Value Destroyed (2829) 2829 Prototype IDs (6) 120 Alien Tech Used (0) 0 Bonus (570) 570 TOTAL SCORE: 7309 Bonus ------- Follower Combat Kills 70 Entered DSFs 500 Cogmind --------- Core Integrity 532/850 Matter 300/300 Energy 23/100 System Corruption 5% Temperature Cool (0) Movement Core (350) Ox6 Location -6/Factory Parts ------- > --- POWER (1) -------- (None) > --- PROPULSION (3) --- Carbon-fiber Leg Improved Titanium Leg > --- UTILITY (7) ------ Improved Heat Sink Medium Storage Unit Visual Processing Unit > --- WEAPON (4) ------- Gatling Laser Plasma Rifle > --- INVENTORY (10) --- Light Nuclear Core Light Angular Momentum Engine Wheel Lightning Gun Lightning Gun Lightning Gun Particle Gun Heavy Laser Improved Grenade Launcher Peak State ------------ > --- POWER ------------ Cold Fusion Reactor > --- PROPULSION ------- Carbon-fiber Leg Improved Titanium Leg Flexi-carbon Leg > --- UTILITY ---------- Improved Heat Sink Improved Heat Sink Improved Heat Sink Advanced Heat Sink Medium Storage Unit Visual Processing Unit Force Field > --- WEAPON ----------- Heavy Laser Gatling Laser Gatling Laser Plasma Rifle > --- INVENTORY -------- Light Nuclear Core Light Angular Momentum Engine Wheel Lightning Gun Lightning Gun Lightning Gun Particle Gun Heavy Laser Improved Grenade Launcher [Rating: 60] Favorites ----------- Power Cold Fusion Reactor Engine Ion Engine Reactor Cold Fusion Reactor Propulsion Improved Titanium Leg Leg Improved Titanium Leg Wheel Armored Wheel Utility Visual Processing Unit Device Improved Heat Sink Storage Small Storage Unit Processor Visual Processing Unit Protection Medium Insulated Plating Weapon Gatling Laser Energy Gun Gatling Laser Ballistic Gun Assault Rifle Launcher Grenade Launcher Build | -11 -10 -9 -9 -8 -7 -7 -6 ------- Run | Yrd Mat Mat Sto Mat Fac DSF Fac Slots Evolved 8 | . . 2 . 2 2 . 2 Power . | . . . . . . . . Propulsion 1 | . . . . 1 . . . Utility 5 | . . 2 . . 1 . 2 Weapon 2 | . . . . 1 1 . . Parts Attached 60 | 6 4 6 11 17 2 . 14 Power 4 | 1 1 1 1 . . . . Engine 3 | 1 1 1 . . . . . Core . | . . . . . . . . Reactor 1 | . . . 1 . . . . Propulsion 18 | 2 1 1 3 7 . . 4 Treads . | . . . . . . . . Leg 16 | 2 1 1 1 7 . . 4 Wheel 2 | . . . 2 . . . . Hover . | . . . . . . . . Flight . | . . . . . . . . Utility 17 | 1 1 2 2 3 1 . 7 Device 10 | . . 2 . 1 1 . 6 Storage 2 | 1 . . . 1 . . . Processor 2 | . 1 . 1 . . . . Hackware . | . . . . . . . . Protection 3 | . . . 1 1 . . 1 Artifact . | . . . . . . . . Weapon 21 | 2 1 2 5 7 1 . 3 Energy Gun 18 | 1 1 2 4 6 1 . 3 Energy Cannon . | . . . . . . . . Ballistic Gun 1 | 1 . . . . . . . Ballistic Cannon . | . . . . . . . . Launcher 2 | . . . 1 1 . . . Special Weapon . | . . . . . . . . Impact Weapon . | . . . . . . . . Slashing Weapon . | . . . . . . . . Piercing Weapon . | . . . . . . . . Special Melee Weapon . | . . . . . . . . Unidentified Prototypes 2 | . . . 1 1 . . . Parts Lost 17 | . . 1 2 . . . 14 Power 1 | . . . . . . . 1 Propulsion 3 | . . . . . . . 3 Utility 8 | . . . 1 . . . 7 Weapon 5 | . . 1 1 . . . 3 Highest Loss Streak 9 | . . 1 1 . . . 9 To Critical Strikes . | . . . . . . . . Average Backups 8 | 2 6 7 7 9 8 8 9 Power 1 | . 1 1 1 1 2 2 2 Propulsion 1 | . 1 1 2 1 2 2 1 Utility . | . . 1 1 1 . . . Weapon 4 | . 3 2 3 4 4 4 6 Tool/Special . | . . . . . . . . Unused Backups 19 | . 2 2 1 4 . . 10 Power 5 | . . 1 1 . . . 3 Propulsion 2 | . . . . 1 . . 1 Utility 1 | . . . . 1 . . . Weapon 11 | . 2 1 . 2 . . 6 Tool/Special . | . . . . . . . . Average Slot Usage (%) 96 | . 94 90 95 99 97 100 97 Engine 3 | . 14 10 4 . . . . Reactor 5 | . . . 6 9 7 7 5 Leg 21 | . 28 20 15 26 23 23 19 Wheel 1 | . . . 6 . . . . Device 14 | . . 17 12 9 15 15 23 Storage 9 | . 14 10 11 9 7 7 6 Processor 9 | . 8 11 13 9 7 7 6 Protection 4 | . . . 2 8 7 7 7 Energy Gun 23 | . 22 20 21 24 25 30 25 Peak Build Rating 60 | 6 8 12 21 42 48 48 60 Average Rating 31 | 3 7 10 16 39 46 47 56 On Entrance 22 | . 6 8 12 20 41 47 48 Naked Turns . | . . . . . . . . Heaviest Build 55 | 12 14 18 27 44 46 46 55 Greatest Support 60 | 20 20 20 20 60 60 60 60 Greatest Overweight (x) 16 | . . . 2 1 . . 16 Average Overweight (x) . | . . . 1 . . . . Largest Inventory Capacity 10 | 8 8 8 8 10 10 10 10 Average Capacity 8 | 5 8 7 8 9 10 10 10 Most Carried 10 | 5 8 8 8 10 9 10 10 Average Carried 8 | 2 6 7 7 9 8 8 9 Final Capacity 10 | 8 8 8 8 10 10 10 10 Final Carried 10 | 3 8 8 8 10 8 10 9 Class Distribution -------------------- 31% | Scavenger-Mutant 28% | Scavenger-Tank 14% | Tank 13% | Mutant 6% | Commander-Tank Dominant Class ---------------- Mutant | -10/Materials Scavenger-Mutant | -9/Materials Scavenger-Mutant | -9/Storage Tank | -8/Materials Tank | -7/Factory Scavenger-Tank | -7/DSF Scavenger-Tank | -6/Factory Resources | -11 -10 -9 -9 -8 -7 -7 -6 ----------- Run | Yrd Mat Mat Sto Mat Fac DSF Fac Matter Collected 1135 | 170 156 110 237 322 . . 140 Remotely 165 | . . 110 55 . . . . Salvage Created 3251 | . 374 264 646 1047 . . 920 Parts 143 | . 20 15 38 44 . . 26 Haulers Intercepted 3 | . 1 . 1 1 . . . Recyclers Shooed 6 | . 2 . 3 1 . . . Parts Field Recycled . | . . . . . . . . Retrieved Matter . | . . . . . . . . Parts Self-Destructed . | . . . . . . . . Prevented . | . . . . . . . . Kills | -11 -10 -9 -9 -8 -7 -7 -6 ------- Run | Yrd Mat Mat Sto Mat Fac DSF Fac Combat Hostiles Destroyed 61 | . 5 5 13 22 . . 16 Guns 51 | . 5 5 8 19 . . 14 AOE 5 | . . . 4 1 . . . Classes Destroyed 14 | . 5 1 1 5 . . 2 Worker 2 | . . . 1 1 . . . Hauler 3 | . 1 . 1 1 . . . Recycler 5 | . 2 . 1 1 . . 1 Operator 2 | . . . . 1 . . 1 Watcher 5 | . 2 . 1 1 . . 1 Swarmer 6 | . 3 . 3 . . . . Cutter 2 | . . . . 2 . . . Grunt 31 | . 2 1 2 14 . . 12 Brawler 1 | . . . . 1 . . . Duelist 1 | . . . . . . . 1 Sentry 15 | . . 4 8 3 . . . Hunter 1 | . . . . 1 . . . Programmer 3 | . . . . . . . 3 Heavy 1 | . . . . 1 . . . Best Kill Streak 7 | . 3 2 4 7 . . 4 Combat Bots Only 5 | . 3 2 4 5 . . 4 Max Kills in Single Turn 2 | . 1 1 2 2 . . 1 Gunslinging 1 | . . . 1 . . . . Exploded 2 | . . . 2 1 . . . Melee . | . . . . . . . . Uniques/NPCs Destroyed . | . . . . . . . . Combat | -11 -10 -9 -9 -8 -7 -7 -6 -------- Run | Yrd Mat Mat Sto Mat Fac DSF Fac Hostile Shots Fired 367 | . 27 35 63 70 . 8 164 Missed 98 | . 8 12 13 21 . 3 41 Hits 269 | . 19 23 50 49 . 5 123 Melee 4 | . . . . 3 . . 1 Projectile 265 | . 19 23 50 46 . 5 122 AOE 2 | . . . . 2 . . . Critical Strikes 12 | . . 3 3 3 . . 3 Actively Blocked 1 | . . . . . . . 1 Damage Taken 4110 | . 174 342 672 915 . 144 1863 Core 761 | . 28 43 144 210 . 18 318 Absorbed by Shields 198 | . . . 9 . . . 189 Redirected to Shielding 102 | . . . . . . . 102 Ignored by Resistances 35 | . . . . . . . 35 Regen/Repaired (Parts) 441 | . . 267 20 154 . . . Core Remaining (%) 79 | 100 88 . 53 61 . 97 . Volleys Fired 184 | . 40 20 40 42 . . 42 Largest 4 | . 2 2 2 3 . . 4 Hottest 309 | . 90 96 121 240 . . 309 Shots Fired 410 | . 61 35 77 111 . . 126 Gun 400 | . 61 35 72 106 . . 126 Cannon . | . . . . . . . . Launcher 10 | . . . 5 5 . . . Special . | . . . . . . . . Kinetic 12 | . 12 . . . . . . Thermal 375 | . 40 31 72 106 . . 126 Explosive 10 | . . . 5 5 . . . Electromagnetic 13 | . 9 4 . . . . . Robot Hit Streak 26 | . 11 15 26 11 . . 17 Robot Miss Streak 7 | . 7 1 4 5 . . 5 Penetration Max . | . . . . . . . . Secondary Targets 8 | . . . 1 4 . . 3 Max Gunslinging Chain 1 | . . . 1 1 . . 1 Shots Hit Robots 294 | . 33 27 50 84 . . 100 Core Hits 204 | . 15 10 27 75 . . 77 Critical Kills . | . . . . . . . . Critical Parts Destroyed . | . . . . . . . . Critical Strikes 11 | . 2 2 6 . . . 1 Burn 10 | . 1 2 6 . . . 1 Corrupt 1 | . 1 . . . . . . Melee Attacks . | . . . . . . . . Impact . | . . . . . . . . Slashing . | . . . . . . . . Piercing . | . . . . . . . . Sneak Attacks . | . . . . . . . . Combat Hostiles . | . . . . . . . . Follow-up Attacks . | . . . . . . . . Damage Inflicted 6140 | . 457 337 981 2033 . . 2332 Guns 5695 | . 457 337 795 1812 . . 2294 Cannons . | . . . . . . . . Explosions 376 | . . . 180 196 . . . Melee . | . . . . . . . . Ramming 69 | . . . 6 25 . . 38 Kinetic 90 | . 90 . . . . . . Thermal 5479 | . 273 305 795 1812 . . 2294 Explosive 376 | . . . 180 196 . . . Electromagnetic 126 | . 94 32 . . . . . Impact . | . . . . . . . . Slashing . | . . . . . . . . Piercing . | . . . . . . . . Highest Corruption 5 | . . . . . . . 5 Average Corruption 1 | . . . . . . . 1 Corruption Purged . | . . . . . . . . Corruption Blocked . | . . . . . . . . Effects 10 | . . . . . . . 10 Message Errors 4 | . . . . . . . 4 Matter Fused 1 | . . . . . . . 1 Heat Flow Errors 2 | . . . . . . . 2 Energy Discharges 3 | . . . . . . . 3 Overload Shots . | . . . . . . . . Overflow Damage . | . . . . . . . . Projectiles . | . . . . . . . . Explosions . | . . . . . . . . Melee . | . . . . . . . . Knockbacks . | . . . . . . . . Impact . | . . . . . . . . Kinetic . | . . . . . . . . Secondary . | . . . . . . . . Self-Inflicted Damage 3 | . . . 3 . . . . Shots . | . . . . . . . . Rammed 2 | . . . 2 . . . . Targets Rammed 7 | . . . 2 2 . . 3 Kicked 5 | . . . . 2 . . 3 Crushed . | . . . . . . . . Highest Temperature 411 | . 162 234 132 411 . . 202 Average Temperature 82 | . 56 66 35 121 . . 78 Received Heat Transfer 1201 | . 30 171 258 291 . . 451 Effects 1 | . . . . 1 . . . Damage (minor) 1 | . . . . 1 . . . Siege Activations . | . . . . . . . . Martial Activations . | . . . . . . . . Shielding Activations . | . . . . . . . . Robots Disrupted . | . . . . . . . . Combat Hostiles . | . . . . . . . . Robots Corrupted . | . . . . . . . . Combat Hostiles . | . . . . . . . . Parts Fried . | . . . . . . . . Impact Corruptions . | . . . . . . . . Robots Melted 5 | . . . 1 2 . . 2 Combat Hostiles 5 | . . . 1 2 . . 2 Parts Melted 45 | . 1 2 14 12 . . 16 Heat Transferred 13169 | . 888 928 2442 4125 . . 4786 Parts Sabotaged . | . . . . . . . . Parts Stolen . | . . . . . . . . Parts Stripped . | . . . . . . . . Power Chain Reactions . | . . . . . . . . Alert | -11 -10 -9 -9 -8 -7 -7 -6 ------- Run | Yrd Mat Mat Sto Mat Fac DSF Fac Maximum Alert Level 1 | . . . . 1 . . . Low Security (%) 91 | 100 100 100 100 62 100 100 100 Level 1 8 | . . . . 37 . . . Level 2 . | . . . . . . . . Level 3 . | . . . . . . . . Level 4 . | . . . . . . . . Level 5 . | . . . . . . . . High Security . | . . . . . . . . Max Security . | . . . . . . . . Peak Influence 365 | . 70 60 146 365 162 116 127 Initial 162 | . . 10 . 31 162 116 60 Average 65 | . 25 12 86 137 162 116 34 Influence Increases 1960 | . 166 153 452 748 5 . 436 Destroy 0b10 Robot/C 1260 | . 100 100 260 480 . . 320 Destroy 0b10 Robot/NC 85 | . 25 . 20 25 . . 15 Destroy Leader 356 | . 26 40 104 134 . . 52 Allied During Kill 29 | . . . . 29 . . . Successful Hack 83 | . . 13 16 30 5 . 19 Disable Machine 30 | . 15 . 15 . . . . Destroy Structure 57 | . . . 37 20 . . . Lose Combat Pursuer 60 | . . . . 30 . . 30 Influence Decreases 1909 | . 140 179 376 467 195 51 501 Entered New Map 363 | . . 16 . 45 195 51 56 Time Decay 1272 | . 140 153 356 318 . . 305 Lost Part 170 | . . 10 20 . . . 140 Lost Ally 104 | . . . . 104 . . . Squads Dispatched 13 | . 1 . 1 5 . . 6 Investigation 4 | . 1 . 1 1 . . 1 Extermination 2 | . . . . . . . 2 Reinforcement 6 | . . . . 4 . . 2 Assault . | . . . . . . . . Garrison 1 | . . . . . . . 1 Intercept . | . . . . . . . . Searches Triggered . | . . . . . . . . Construction Impeded 1 | . . . . . . . 1 Haulers Reinforced . | . . . . . . . . Active Scanning Responses . | . . . . . . . . Cargo Convoy Interrupts 1 | . . . . . . . 1 Stealth | -11 -10 -9 -9 -8 -7 -7 -6 --------- Run | Yrd Mat Mat Sto Mat Fac DSF Fac Distress Signals 3 | . . . 1 1 . . 1 Communications Jammed . | . . . . . . . . Distress Signals . | . . . . . . . . Times Spotted 112 | . 8 5 20 40 . 2 37 Peak Tracking Total 12 | . 3 2 4 8 . 2 12 Tactical Retreats 4 | . . . . 2 . . 2 Traps | -11 -10 -9 -9 -8 -7 -7 -6 ------- Run | Yrd Mat Mat Sto Mat Fac DSF Fac Traps Triggered 6 | . 1 . 3 . . 1 1 Indirectly . | . . . . . . . . Trap Hack Attempts . | . . . . . . . . Triggered . | . . . . . . . . Disarmed . | . . . . . . . . Reprogrammed . | . . . . . . . . Reused . | . . . . . . . . Traps Extracted . | . . . . . . . . Installed . | . . . . . . . . Triggered . | . . . . . . . . Machines | -11 -10 -9 -9 -8 -7 -7 -6 ---------- Run | Yrd Mat Mat Sto Mat Fac DSF Fac Machines Disabled 2 | . 1 . 1 . . . . Max in Single Turn 1 | . 1 . 1 . . . . Machines Repaired . | . . . . . . . . Machines Dismantled . | . . . . . . . . Machines Sabotaged . | . . . . . . . . Overloaded Fab Kills . | . . . . . . . . Hacking | -11 -10 -9 -9 -8 -7 -7 -6 --------- Run | Yrd Mat Mat Sto Mat Fac DSF Fac Machines Accessed 27 | . 1 3 8 7 1 . 7 Terminals 18 | . 1 . 5 5 1 . 6 Fabricators . | . . . . . . . . Repair Stations 4 | . . 1 1 1 . . 1 Recycling Units 4 | . . 1 2 1 . . . Scanalyzers 1 | . . 1 . . . . . Garrison Access . | . . . . . . . . Total Hacks 71 | . 2 17 19 20 1 . 12 Successful 40 | . . 13 11 11 1 . 4 Failed 31 | . 2 4 8 9 . . 8 Catastrophic 12 | . 1 . 3 4 . . 4 Database Lockouts . | . . . . . . . . Manual 9 | . . . 3 5 . . 1 Terminals 41 | . 2 . 13 14 1 . 11 Fabricators . | . . . . . . . . Repair Stations 18 | . . 13 2 2 . . 1 Recycling Units 11 | . . 3 4 4 . . . Scanalyzers 1 | . . 1 . . . . . Garrison Access . | . . . . . . . . Terminal Hacks 19 | . . . 7 7 1 . 4 Robot Analysis 1 | . . . 1 . . . . Prototype ID Bank 2 | . . . . 2 . . . Open Door 3 | . . . 3 . . . . Open DSF 2 | . . . . . 1 . 1 Alert Level 5 | . . . . 3 . . 2 Maintenance Status 1 | . . . 1 . . . . Patrol Status 2 | . . . 1 1 . . . Zone Layout 3 | . . . 1 1 . . 1 Fabricator Hacks . | . . . . . . . . Repair Station Hacks 16 | . . 12 2 2 . . . Scan Component 8 | . . 6 1 1 . . . Repair 8 | . . 6 1 1 . . . Recycling Unit Hacks 5 | . . 1 2 2 . . . Report Inventory 4 | . . 1 2 1 . . . Retrieve Components 1 | . . . . 1 . . . Scanalyzer . | . . . . . . . . Garrison Access Hacks . | . . . . . . . . Unauthorized Hacks . | . . . . . . . . Terminals . | . . . . . . . . Fabricators . | . . . . . . . . Repair Stations . | . . . . . . . . Recycling Units . | . . . . . . . . Scanalyzers . | . . . . . . . . Garrison Access . | . . . . . . . . Data Cores Recovered 1 | . . . . . . . 1 Used 1 | . . . . . . . 1 Hacking Detections 19 | . 1 1 6 6 . . 5 Full Trace Events 5 | . 1 . 1 2 . . 1 Feedback Events . | . . . . . . . . Feedback Blocked . | . . . . . . . . Robot Schematics Acquired . | . . . . . . . . Robots Built . | . . . . . . . . Authchips . | . . . . . . . . Time . | . . . . . . . . Total Robot Build Rating . | . . . . . . . . Part Schematics Acquired . | . . . . . . . . Parts Built . | . . . . . . . . Authchips . | . . . . . . . . Time . | . . . . . . . . Total Part Build Rating . | . . . . . . . . Parts Repaired 8 | . . 6 1 1 . . . Time 232 | . . 162 26 44 . . . Parts Recycled . | . . . . . . . . Recycled Matter . | . . . . . . . . Retrieved Matter . | . . . . . . . . Retrieved Components 2 | . . . . 2 . . . Parts Scanalyzed . | . . . . . . . . Part Schematics Acquired . | . . . . . . . . Parts Damaged . | . . . . . . . . Bothacking | -11 -10 -9 -9 -8 -7 -7 -6 ------------ Run | Yrd Mat Mat Sto Mat Fac DSF Fac Used RIF Installer . | . . . . . . . . Robots Hacked . | . . . . . . . . Non-combat . | . . . . . . . . Combat . | . . . . . . . . Robot Hacks Applied . | . . . . . . . . Relay Couplers Released . | . . . . . . . . Fabnet Peak Effective % . | . . . . . . . . Robots Rewired . | . . . . . . . . Allies Hacked . | . . . . . . . . Hacks Repelled . | . . . . . . . . Allies | -11 -10 -9 -9 -8 -7 -7 -6 -------- Run | Yrd Mat Mat Sto Mat Fac DSF Fac Total Allies 10 | . . . 10 . . . . Largest Group 10 | . . . 10 7 . . . Highest-Rated Group 88 | . . . 88 64 . . . Highest-Rated Ally 16 | . . . 16 16 . . . Total Orders . | . . . . . . . . Ally Attacks 44 | . . . . 44 . . . Total Damage 379 | . . . . 379 . . . Kills 2 | . . . . 2 . . . Allies Corrupted . | . . . . . . . . Allies Melted . | . . . . . . . . Intel | -11 -10 -9 -9 -8 -7 -7 -6 ------- Run | Yrd Mat Mat Sto Mat Fac DSF Fac Active Infowar (turns) 3083 | . 213 510 630 614 16 51 1049 Optics 3083 | . 213 510 630 614 16 51 1049 Robot Analysis Total 1 | . . . 1 . . . . Derelict Logs Recovered . | . . . . . . . . Drone Launches . | . . . . . . . . Drone Recoveries . | . . . . . . . . Exploration | -11 -10 -9 -9 -8 -7 -7 -6 ------------- Run | Yrd Mat Mat Sto Mat Fac DSF Fac Turns Passed 3629 | 69 337 510 804 793 16 51 1049 Spaces Moved 1762 | 51 162 180 360 397 10 37 565 Core 8 | 7 . . . . . . 1 Treads . | . . . . . . . . Legs 1533 | 44 162 180 139 397 10 37 564 Wheels 221 | . . . 221 . . . . Hover . | . . . . . . . . Flight . | . . . . . . . . Fastest Speed 50 | 50 120 120 105 120 130 130 123 Average Speed 125 | 110 120 120 132 124 130 130 127 Slowest Speed 850 | 120 120 120 260 200 130 130 850 Overloaded Moves . | . . . . . . . . Propulsion Burnouts . | . . . . . . . . Robots Hopped . | . . . . . . . . Potential Cave-ins . | . . . . . . . . Cave-ins Triggered . | . . . . . . . . Exploration Rate (%) 27 | 3 38 18 53 44 1 44 19 Regions Visited 7 Branch Regions 1 Pre-discovered Areas . | . . . . . . . . Known Exits Taken 1 | . . . . . 1 . . Unknown Exits Taken 5 | 1 1 1 1 1 . . . Scrap Searched . | . . . . . . . . Spaces Dug . | . . . . . . . . Terrain Destroyed 63 | . . . 36 27 . . . Melee . | . . . . . . . . Projectile . | . . . . . . . . AOE 63 | . . . 36 27 . . . Terrain Rammed . | . . . . . . . . Walls Destroyed . | . . . . . . . . Machines Disabled . | . . . . . . . . Actions | -11 -10 -9 -9 -8 -7 -7 -6 --------- Run | Yrd Mat Mat Sto Mat Fac DSF Fac Total 2788 | 61 246 439 608 594 12 40 788 Wait 650 | . 28 215 165 93 . . 149 Move 1755 | 50 161 179 359 396 9 36 565 Hop . | . . . . . . . . Pick Up 43 | 5 8 7 4 12 . 3 4 Fast Attach 33 | 4 1 9 5 6 . . 8 Attach 11 | 2 . 1 2 2 2 . 2 Detach 2 | . . . 2 . . . . Swap 42 | . 3 2 12 19 1 . 5 Drop 51 | . 5 6 7 22 . 1 10 Fire 184 | . 40 20 40 42 . . 42 Melee . | . . . . . . . . Ram 2 | . . . 2 . . . . Kick 5 | . . . . 2 . . 3 Crush . | . . . . . . . . Escape Stasis 10 | . . . 10 . . . . Rewire . | . . . . . . . . Trap . | . . . . . . . . Miscellaneous . | . . . . . . . . Route ------- -11/Scrapyard -10/Materials (discovered 2 exits: *Mat / [*Min]) -9/Materials -9/Storage -8/Materials -7/Factory -7/DSF -6/Factory History --------- Turn | Location | Event 3 | -11/Scrapyard | Discovered new exit (range 15) 70 | -11/Scrapyard | Entered Materials 306 | -10/Materials | Discovered new exit (range 15) 315 | -10/Materials | Build established: Mutant 326 | -10/Materials | Discovered new exit (range 12) 407 | -10/Materials | Entered another Materials area 407 | -9/Materials | Evolved 2 slots: Utility x2 657 | -9/Materials | Discovered new exit (range 16) 738 | -9/Materials | Repaired Aluminum Leg 765 | -9/Materials | Repaired Aluminum Leg 786 | -9/Materials | Build established: Scavenger-Mutant 793 | -9/Materials | Repaired Sml. Laser 826 | -9/Materials | Repaired Beam Rifle 854 | -9/Materials | Repaired Ion Engine 881 | -9/Materials | Repaired Sml. Storage Unit 917 | -9/Materials | Entered Storage 1099 | -9/Storage | Repaired Heat Sink 1617 | -9/Storage | Discovered new exit (range 17) 1643 | -9/Storage | Assisted by bots powering up and referring to "LRC-V3" 1721 | -9/Storage | Entered Materials 1721 | -8/Materials | Accompanied by 7 allies 1721 | -8/Materials | Evolved 2 slots: Propulsion x1, Weapon x1 1988 | -8/Materials | Lost 3 allies 2248 | -8/Materials | Build established: Tank 2296 | -8/Materials | Repaired Med. Insulated Plating 2503 | -8/Materials | Discovered new exit (range 10) 2514 | -8/Materials | Entered Factory 2514 | -7/Factory | Evolved 2 slots: Utility x1, Weapon x1 2530 | -7/Factory | Identified exit to DSF 2530 | -7/Factory | Entered DSF 2565 | -7/DSF | Discovered new exit (range 11) 2568 | -7/DSF | Additional patrols routed to DSF 2581 | -7/DSF | Entered Factory 2581 | -6/Factory | Evolved 2 slots: Utility x2 2781 | -6/Factory | Spotted B-75 Beast 2818 | -6/Factory | Build established: Scavenger-Tank 3605 | -6/Factory | Cargo convoy interrupted 3605 | -6/Factory | Garrison activated, responded to threat 3630 | -6/Factory | Self-destructed Last Messages --------------- G-50 Soldier destroyed. Slug penetrates Construction Platform. Construction Platform disabled. Slug penetrates Construction Platform. Gatling Laser destroyed. Penetrated by Slug. Gatling Laser destroyed. Cold Fusion Reactor destroyed. P-60 Hacker destroyed. Switching to secondary target: X-62 Marksman. Slug penetrates I-36 Angel. Flexi-carbon Leg destroyed. Force Field destroyed. Imp. Heat Sink destroyed. Penetrated by Slug. System corrupted: Energy discharge (-3). Hvy. Laser destroyed. Imp. Heat Sink destroyed. Adv. Heat Sink destroyed. Penetrated by Slug. Map ----- +----------------------------------------------------+ | ?????????????????????????????????????????????????? | | ?????????????????????????????????????????????????? | | ?????????????????????????????????????????????????? | | ?????????????????????????????????????????????????? | | ??????????????????????? ????????????????????????? | | ??????????????????????? ????????????????????????? | | ??????????????????????? ????????????????????????? | | ??????????????????????? #???????????????????????? | | ??????????????????????? #???????????????????????? | | ?????????? ??????????" #???????????????????????? | | ?????????? """?????" #???????????????????????? | | ??????????? """"??""" #???????????????????????? | | ???????????? #???????????????????????? | | ???????????? """" #???????????????????????? | | ????????????" " """" #??????????"????????????? | | ????????????"G" """" ######### ?????????????? | | ?????????????" ???????????????? | | ??????????????? ?????????????????? | | ????????????????? ???????????????????? | | ??????????????????? ?????????????????????? | | ????????????????????? ???????????????????????? | | ?????????????? ?####+####?????????????????????? | | #+#+????????# ?# mx #?????????????????????? | | ?????????# ##p"""Y*p#?????????????????????? | | #???????# ## """"Yx#?????????????????????? | | "" #???????# + """"@=#?????????????????????? | | """#???????# ## """"%=#?????????????????????? | | F"#???????# ##h""""! #?????????????????????? | | """#???????# ##x""""! #?????????????????????? | | "" ######### ## """"=%#?????????????????????? | | ## %h i= #?????????????????????? | | "" ## "" " #?????????????????????? | | ## """" #?????????????????????? | | ## """" #?????????????????????? | | ## """" #?????????????????????? | | #+#######+### ## """" #?????????????????????? | | # ## """" #?????????????????????? | | """ !!! !# + """" #?????????????????????? | | """" !! # ## !#?????????????????????? | | """" ! # ##########?????????????????????? | | # #??????????????????????????????? | | ""T""" + #??????????????????????????????? | | ###############+###??????????????????????????????? | | ???????# ???????????????????????????????? | | ???????# ???????????????????????????????? | | ???????# ???????????????????????????????? | | ???????# ???????????????????????????????? | | ???????# """"""" ???????????????????????????????? | | ???????# """"""" ???????????????????????????????? | | ???????# """"""" ???????????????????????????????? | +----------------------------------------------------+ Best States ------------- Heat Dissipation 98 Energy Generation 17 Energy Capacity 265 Matter Stores 300 Matter Capacity 300 Sight Range 18 Terrain Scan Density 10 Armor Coverage 225 Resistance: EM 20 Weapon Shielding 66 Weapon Cycling 15 Evasion (%) 55 Item Schematics ----------------- None Robot Schematics ------------------ None Fabricated ------------ Nothing Repaired ---------- Aluminum Leg | 24% | -9/Materials Aluminum Leg | 37% | -9/Materials Sml. Laser | 40% | -9/Materials Beam Rifle | 48% | -9/Materials Ion Engine | 61% | -9/Materials Sml. Storage Unit | 74% | -9/Materials Heat Sink | 33% | -9/Storage Med. Insulated Plating | 3% | -8/Materials Alien Tech Used ----------------- None Achievements -------------- None Challenges ------------ None Game ------ Seed SignalPulseNanoactuators Manual? 0 Play Time 00:52:11 Cumulative 41.6 hours Start 2025.05.25 @ 16:39:26 End 2025.05.25 @ 17:33:07 Sessions 1 Manual Loads 0 Difficulty Rogue Special Mode None Game No. 71 Rogue 53 Adventurer 17 Explorer 1 Win Type - Total 3 Types 3/0/0/0/0/0/0/0/0/0 Lore% 13 Gallery% 33 Achievement% 33 Wizard Run 0 Options --------- Layout 1 ASCII 0 Keyboard 0 Movement Arrows Keybinds 0 Fullscreen 1 Font 24/Smallcaps Map View 50x35 Zoom Use 0% Tactical HUD 0 Map Filters NONE Filters NONE Steam 1 RUN: e2d5bb59-8148-4226-9a81-19545b8b41ff